bitfinex/quotes_BTCUSD_20250109
["timestamp","ask_amount","ask_price","bid_price","bid_amount"]
[1736430401016,0.30647044,92438.0,92437.0,0.001]
[1736430401219,0.15,92432.0,92398.0,0.216454]
[1736430401392,0.216413,92416.0,92399.0,0.32075176]
[1736430401645,0.216413,92416.0,92399.0,0.10429976]
[1736430401646,0.16208547,92410.0,92399.0,0.10429976]
[1736430401860,0.216417,92414.0,92400.0,0.21645]
[1736430402041,0.01116,92409.0,92397.0,0.00015084]
[1736430402283,0.01116,92409.0,92398.0,0.216454]
[1736430403120,0.01116,92409.0,92397.0,0.02181282]
[1736430403343,0.01116,92409.0,92398.0,0.216454]
[1736430403959,0.01116,92409.0,92398.0,0.218454]
[1736430404371,0.01116,92409.0,92398.0,0.216454]
[1736430404999,0.01116,92408.0,92402.0,0.432888]
[1736430405217,0.01116,92408.0,92406.0,0.216434]
[1736430405439,0.216388,92427.0,92408.0,0.216431]
[1736430405649,0.216398,92423.0,92408.0,0.216431]
[1736430406085,0.001,92409.0,92408.0,0.34373076]
[1736430406300,0.001,92409.0,92408.0,0.49373076]
[1736430406949,0.001,92409.0,92408.0,0.59373076]
[1736430407175,0.002,92423.0,92422.0,0.366398]
[1736430407385,0.01116,92441.0,92437.0,0.239363]
[1736430407644,0.01116,92441.0,92437.0,0.34366276]
[1736430407850,0.0828,92463.0,92437.0,0.34366276]
[1736430408059,0.01116,92439.0,92437.0,0.34366276]
[1736430408692,0.0113304,92443.0,92437.0,0.34466276]
[1736430409323,0.0113304,92443.0,92437.0,0.001]
[1736430410241,0.0001704,92443.0,92437.0,0.12829976]
[1736430410517,0.0001704,92443.0,92437.0,0.10529976]
[1736430410758,0.0001704,92443.0,92437.0,0.12929976]
[1736430411003,0.0001704,92443.0,92437.0,0.12829976]
[1736430411216,0.0001704,92443.0,92437.0,0.13029976]
[1736430411412,0.0001704,92443.0,92437.0,0.12929976]
[1736430412229,0.01116,92440.0,92437.0,0.12929976]
[1736430412394,0.01116,92440.0,92437.0,0.13029976]
[1736430412771,0.01116,92440.0,92437.0,0.10729976]
[1736430412973,0.01116,92440.0,92437.0,0.003]
[1736430413177,0.216358,92439.0,92437.0,0.003]
[1736430413780,0.1277,92438.0,92437.0,0.003]
[1736430414032,0.1277,92438.0,92437.0,0.001]
[1736430414569,0.1277,92438.0,92418.0,0.216408]
[1736430414570,0.216382,92429.0,92418.0,0.216408]
[1736430414807,0.216382,92429.0,92420.0,0.00015084]
[1736430415015,0.21439,92430.0,92420.0,0.00015084]
[1736430415230,0.1337,92438.0,92420.0,0.00015084]
[1736430415231,0.01967063,92428.0,92420.0,0.00015084]
[1736430415433,0.216394,92424.0,92420.0,0.00015084]
[1736430415641,0.3283,92421.0,92420.0,0.00015084]
[1736430415849,0.216466,92393.0,92392.0,0.09595392]
[1736430416060,0.227506,92393.0,92392.0,0.09595392]
[1736430417367,0.50685653,92393.0,92392.0,0.09595392]
[1736430417556,0.50785653,92393.0,92392.0,0.10295392]
[1736430417767,0.50785653,92393.0,92367.0,0.09595392]
[1736430417768,0.1,92388.0,92367.0,0.09595392]
[1736430417995,0.216515,92373.0,92367.0,0.09595392]
[1736430418955,0.216515,92373.0,92361.0,8.52e-05]
[1736430419322,0.15,92375.0,92361.0,8.52e-05]
[1736430419522,0.216539,92362.0,92361.0,8.52e-05]
[1736430419792,0.227579,92362.0,92361.0,8.52e-05]
[1736430420635,0.01104,92362.0,92361.0,8.52e-05]
[1736430420853,0.227579,92362.0,92361.0,0.00058815]
[1736430421077,0.227579,92362.0,92361.0,0.00558815]
[1736430421078,0.61646203,92362.0,92361.0,0.00558815]
[1736430421282,0.61646203,92362.0,92361.0,0.00500001]
[1736430421499,0.62813401,92362.0,92361.0,0.00500001]
[1736430421704,0.62813401,92362.0,92361.0,0.00600001]
[1736430421908,0.63483233,92362.0,92361.0,0.00600001]
[1736430422322,0.216595,92338.0,92337.0,8.52e-05]
[1736430422541,0.366595,92338.0,92337.0,8.52e-05]
[1736430423153,0.47089476,92338.0,92337.0,8.52e-05]
[1736430423377,0.227635,92338.0,92337.0,8.52e-05]
[1736430423814,0.227635,92338.0,92311.0,8.51e-05]
[1736430423815,0.216626,92325.0,92311.0,8.51e-05]
[1736430424022,0.12233976,92338.0,92324.0,0.00023549]
[1736430424227,0.21661,92332.0,92324.0,0.00023549]
[1736430424437,0.11533976,92338.0,92324.0,0.00023549]
[1736430424438,0.216622,92327.0,92324.0,0.00023549]
[1736430424652,0.216622,92327.0,92320.0,0.12240359]
[1736430424653,0.25429976,92326.0,92320.0,0.12240359]
[1736430424855,0.21663,92323.0,92320.0,0.0681434]
[1736430425079,0.366635,92321.0,92320.0,0.05584861]
[1736430425303,0.295722,92327.0,92320.0,0.05584861]
[1736430425504,0.01104,92326.0,92320.0,0.05584861]
[1736430425713,0.002,92332.0,92320.0,0.05584861]
[1736430425714,0.01104,92325.0,92320.0,0.05584861]
[1736430425926,0.002,92332.0,92321.0,0.023]
[1736430425927,0.01104,92324.0,92321.0,0.023]
[1736430426138,0.15184,92345.0,92332.0,0.433215]
[1736430426368,0.008,92338.0,92322.0,0.023]
[1736430426637,0.01104,92337.0,92336.0,0.023]
[1736430426841,0.01104,92337.0,92336.0,0.12729976]
[1736430427255,0.00015052,92344.0,92343.0,0.239583]
[1736430427466,0.00015052,92344.0,92343.0,0.49388276]
[1736430428323,0.00015052,92344.0,92343.0,0.34388276]
[1736430429171,0.00015052,92344.0,92336.0,0.003]
[1736430429172,0.001,92337.0,92336.0,0.003]
[1736430429372,0.02277335,92337.0,92336.0,0.003]
[1736430429579,0.02177335,92337.0,92321.0,0.216635]
[1736430429798,0.02177335,92337.0,92322.0,0.216633]
[1736430430031,0.02177335,92337.0,92316.0,0.2167302]
[1736430430235,0.216611,92332.0,92316.0,0.4333752]
[1736430430450,0.04549844,92331.0,92316.0,0.4333752]
[1736430430648,0.216616,92329.0,92316.0,0.2167302]
[1736430430887,0.01104,92330.0,92320.0,0.27248461]
[1736430431130,0.433256,92324.0,92320.0,0.05584861]
[1736430431363,0.15,92321.0,92320.0,0.05584861]
[1736430431566,0.25429976,92321.0,92320.0,0.05584861]
[1736430431778,0.01104,92321.0,92320.0,0.05584861]
[1736430432001,0.0818,92338.0,92336.0,0.004]
[1736430432201,0.01504,92337.0,92336.0,0.004]
[1736430432440,0.06882635,92337.0,92320.0,0.05584861]
[1736430432860,0.002,92321.0,92320.0,0.05684861]
[1736430433283,0.002,92321.0,92320.0,0.05584861]
[1736430433489,0.216631,92323.0,92320.0,0.05584861]
[1736430433699,0.01104,92322.0,92320.0,0.05584861]
[1736430433923,0.216602,92335.0,92321.0,0.216635]
[1736430434119,0.216607,92333.0,92321.0,0.216635]
[1736430434318,0.0408802,92334.0,92321.0,0.216635]
[1736430434561,0.216626,92325.0,92320.0,0.05584861]
[1736430434707,0.216618,92329.0,92320.0,0.05584861]
[1736430435127,0.216607,92333.0,92320.0,0.05584861]
[1736430435323,0.02513204,92332.0,92320.0,0.05584861]
[1736430435527,0.216629,92324.0,92320.0,0.05584861]
[1736430435686,0.02513204,92332.0,92321.0,0.216635]
[1736430435890,0.216589,92341.0,92320.0,0.05584861]
[1736430435891,0.004,92322.0,92320.0,0.05584861]
[1736430436284,0.0755,92354.0,92321.0,0.12838288]
[1736430436504,0.01104,92330.0,92329.0,0.239616]
[1736430436707,0.01104,92330.0,92329.0,0.34391576]
[1736430436908,0.01104,92330.0,92329.0,0.216616]
[1736430437528,0.01104,92330.0,92329.0,0.34391576]
[1736430437777,0.265547,92359.0,92341.0,0.216588]
[1736430437986,0.01104,92343.0,92341.0,0.433176]
[1736430438215,0.01104,92343.0,92337.0,0.216595]
[1736430438619,0.01104,92343.0,92335.0,0.216602]
[1736430438769,0.02277665,92342.0,92320.0,0.05584861]
[1736430438976,0.02277665,92342.0,92329.0,0.001]
[1736430439171,0.21659,92340.0,92324.0,0.433253]
[1736430439379,0.21659,92340.0,92324.0,0.216626]
[1736430439577,0.02277665,92342.0,92337.0,0.004]
[1736430439779,0.02277665,92342.0,92328.0,0.216617]
[1736430439780,0.23936365,92342.0,92328.0,0.216617]
[1736430440016,0.216592,92340.0,92325.0,0.216626]
[1736430440335,0.216592,92340.0,92285.0,0.216718]
[1736430440336,0.21661,92332.0,92305.0,8.52e-05]
[1736430440539,0.21661,92332.0,92320.0,0.27248461]
[1736430440749,0.216593,92339.0,92324.0,0.216627]
[1736430440953,0.23936265,92342.0,92325.0,0.10429976]
[1736430440954,0.216586,92342.0,92325.0,0.10429976]
[1736430441154,0.01104,92338.0,92330.0,0.216612]
[1736430441360,0.21673252,92344.0,92327.0,0.216621]
[1736430441491,0.01104,92337.0,92327.0,0.32092076]
[1736430441699,0.01104,92337.0,92332.0,0.216608]
[1736430442182,0.01104,92337.0,92328.0,0.216619]
[1736430442387,0.0227624,92336.0,92328.0,0.216619]
[1736430442586,0.0227624,92336.0,92320.0,0.05584861]
[1736430442718,0.216602,92335.0,92322.0,0.023]
[1736430442919,0.33749976,92335.0,92320.0,0.05584861]
[1736430443159,0.15,92321.0,92320.0,0.05584861]
[1736430443359,0.33089306,92321.0,92320.0,0.05584861]
[1736430443570,0.2265933,92321.0,92320.0,0.05584861]
[1736430444388,0.24917611,92321.0,92320.0,0.05584861]
[1736430444595,0.17258281,92321.0,92320.0,0.05084861]
[1736430444850,0.02258281,92321.0,92320.0,0.05084861]
[1736430445055,0.03350281,92321.0,92320.0,0.05084861]
[1736430446031,0.02858281,92321.0,92320.0,0.05084861]
[1736430446240,0.03050281,92321.0,92320.0,0.02284861]
[1736430446474,0.01958281,92321.0,92320.0,0.02284861]
[1736430446664,0.03550281,92321.0,92320.0,0.02284861]
[1736430446867,0.03250281,92321.0,92320.0,0.02284861]
[1736430447044,0.24713781,92321.0,92320.0,0.02284861]
[1736430447251,0.48083781,92321.0,92320.0,0.02284861]
[1736430447468,0.58413757,92321.0,92320.0,0.02284861]
[1736430448135,0.68413757,92321.0,92320.0,0.02284861]
[1736430448535,0.82943757,92321.0,92320.0,0.02284861]
[1736430448666,0.83493733,92321.0,92320.0,0.02284861]
[1736430448871,0.93493733,92321.0,92320.0,0.02284861]
[1736430449339,0.9684008,92321.0,92320.0,0.02284861]
[1736430449543,0.366656,92312.0,92300.0,4e-05]
[1736430449798,0.47095576,92312.0,92300.0,4e-05]
[1736430449994,0.54971644,92312.0,92300.0,4e-05]
[1736430450198,0.64971644,92312.0,92300.0,4e-05]
[1736430450408,0.74971644,92312.0,92300.0,4e-05]
[1736430450779,0.47995576,92312.0,92300.0,4e-05]
[1736430450984,0.53100204,92312.0,92300.0,4e-05]
[1736430451252,0.63100204,92312.0,92300.0,4e-05]
[1736430451455,0.53100204,92312.0,92300.0,4e-05]
[1736430452093,0.52200204,92312.0,92300.0,4e-05]
[1736430452299,0.61099771,92312.0,92300.0,4e-05]
[1736430452511,0.71999771,92312.0,92300.0,4e-05]
[1736430452708,0.80699771,92312.0,92300.0,4e-05]
[1736430453065,0.81499771,92312.0,92300.0,4e-05]
[1736430453286,0.80899771,92312.0,92300.0,4e-05]
[1736430453443,0.72111771,92312.0,92300.0,4e-05]
[1736430453652,0.61599771,92312.0,92300.0,4e-05]
[1736430453859,0.61911771,92312.0,92300.0,4e-05]
[1736430454066,0.72311771,92312.0,92300.0,4e-05]
[1736430454268,0.62311771,92312.0,92300.0,4e-05]
[1736430454689,0.53812204,92312.0,92300.0,4e-05]
[1736430454894,0.63812204,92312.0,92300.0,4e-05]
[1736430455310,0.54712204,92312.0,92300.0,4e-05]
[1736430455529,0.50265857,92312.0,92300.0,4e-05]
[1736430455958,0.51565857,92312.0,92300.0,4e-05]
[1736430456193,0.61095833,92312.0,92300.0,4e-05]
[1736430456387,0.60695833,92312.0,92300.0,4e-05]
[1736430456628,0.51165857,92312.0,92300.0,4e-05]
[1736430456936,0.41135881,92312.0,92300.0,4e-05]
[1736430457513,0.40735881,92312.0,92300.0,4e-05]
[1736430458420,0.39835881,92312.0,92300.0,4e-05]
[1736430458672,0.50265857,92312.0,92300.0,4e-05]
[1736430458843,0.79275183,92312.0,92300.0,4e-05]
[1736430459699,0.78775183,92312.0,92300.0,4e-05]
[1736430459960,0.79675183,92312.0,92311.0,1e-07]
[1736430460188,0.87185183,92312.0,92311.0,1e-07]
[1736430460418,0.566682,92301.0,92300.0,4e-05]
[1736430460623,0.92724152,92301.0,92300.0,0.00019085]
[1736430462086,0.1,92295.0,92283.0,8.52e-05]
[1736430462327,0.57099576,92295.0,92283.0,8.52e-05]
[1736430462615,0.67099576,92295.0,92283.0,8.52e-05]
[1736430462952,0.70751576,92295.0,92283.0,8.52e-05]
[1736430463162,0.79706342,92295.0,92283.0,8.52e-05]
[1736430463393,0.69706342,92295.0,92283.0,8.52e-05]
[1736430463604,0.37198698,92295.0,92283.0,8.52e-05]
[1736430463807,0.05099122,92295.0,92283.0,8.52e-05]
[1736430464006,0.06611122,92295.0,92283.0,8.52e-05]
[1736430464297,0.06611122,92295.0,92283.0,0.2168072]
[1736430464588,0.05399122,92295.0,92294.0,0.2167832]
[1736430464762,0.07511122,92295.0,92294.0,8.52e-05]
[1736430465000,0.09481834,92295.0,92294.0,0.00487149]
[1736430465214,0.08581834,92295.0,92294.0,1.44e-06]
[1736430465423,0.3401181,92295.0,92294.0,1.44e-06]
[1736430465609,0.3481181,92295.0,92294.0,1.44e-06]
[1736430465858,0.3401181,92295.0,92294.0,1.44e-06]
[1736430466063,0.55166507,92295.0,92294.0,1.44e-06]
[1736430466270,2.40952507,92295.0,92294.0,1.44e-06]
[1736430466710,2.41252507,92295.0,92294.0,1.44e-06]
[1736430466923,1.44566507,92295.0,92294.0,1.44e-06]
[1736430467107,0.97666507,92295.0,92294.0,1.44e-06]
[1736430467340,0.15,92286.0,92283.0,8.52e-05]
[1736430467551,0.15,92284.0,92283.0,8.52e-05]
[1736430467754,0.216715,92287.0,92283.0,8.52e-05]
[1736430467960,0.216719,92285.0,92283.0,8.52e-05]
[1736430468178,0.32101876,92285.0,92283.0,8.52e-05]
[1736430468682,0.01212,92284.0,92283.0,8.52e-05]
[1736430468899,0.17158862,92284.0,92283.0,8.52e-05]
[1736430469581,0.22257984,92284.0,92283.0,8.52e-05]
[1736430469794,0.06311122,92284.0,92283.0,8.52e-05]
[1736430470222,0.16741098,92284.0,92283.0,8.52e-05]
[1736430471544,0.16941098,92284.0,92283.0,8.52e-05]
[1736430471984,0.17041098,92284.0,92283.0,8.52e-05]
[1736430472225,0.23195512,92284.0,92283.0,8.52e-05]
[1736430472437,0.05399122,92284.0,92283.0,8.52e-05]
[1736430472640,0.06611122,92284.0,92283.0,8.52e-05]
[1736430472846,0.06411122,92284.0,92283.0,8.52e-05]
[1736430473267,0.16841098,92284.0,92283.0,0.00598439]
[1736430473498,0.22092348,92284.0,92283.0,8.52e-05]
[1736430473899,0.06311122,92284.0,92283.0,8.52e-05]
[1736430474756,0.05099122,92284.0,92283.0,8.52e-05]
[1736430474968,0.06311122,92284.0,92283.0,0.0010852]
[1736430475183,0.01958281,92284.0,92283.0,0.0020852]
[1736430475395,0.01958281,92284.0,92283.0,0.12838496]
[1736430475625,0.01958281,92284.0,92283.0,0.36210818]
[1736430475837,0.01212,92296.0,92295.0,0.223]
[1736430476059,0.01212,92296.0,92295.0,0.31012298]
[1736430476267,0.01212,92308.0,92302.0,0.078]
[1736430476471,0.00015052,92308.0,92303.0,0.12838302]
[1736430476685,0.00015052,92308.0,92306.0,0.21667]
[1736430476905,0.00015052,92308.0,92307.0,0.10429976]
[1736430477113,0.00015052,92308.0,92306.0,0.21667]
[1736430477959,0.00015052,92308.0,92306.0,0.21967]
[1736430478171,0.00015052,92308.0,92306.0,0.003]
[1736430478343,0.00015052,92308.0,92305.0,0.216672]
[1736430478593,0.00115052,92308.0,92305.0,0.216672]
[1736430478995,0.00015052,92308.0,92307.0,0.216668]
[1736430479198,0.00115052,92308.0,92307.0,0.32096776]
[1736430479587,0.00015052,92308.0,92307.0,0.34396776]
[1736430479796,0.00115052,92308.0,92306.0,0.003]
[1736430480049,0.216668,92307.0,92306.0,0.003]
[1736430480183,0.216683,92301.0,92296.0,0.09692009]
[1736430480382,0.216687,92299.0,92296.0,0.09692009]
[1736430480667,0.10429976,92298.0,92296.0,0.09692009]
[1736430480868,0.216691,92297.0,92296.0,0.09692009]
[1736430481072,0.33355076,92297.0,92296.0,0.09692009]
[1736430481280,0.216703,92292.0,92274.0,0.1889144]
[1736430481386,0.06758378,92297.0,92296.0,0.001]
[1736430481592,0.11685976,92297.0,92296.0,0.001]
[1736430482417,0.01556,92297.0,92296.0,0.001]
[1736430482619,0.01256,92297.0,92296.0,0.001]
[1736430482845,0.01256,92297.0,92274.0,0.216745]
[1736430482846,0.229254,92297.0,92274.0,0.216745]
[1736430483047,0.10429976,92296.0,92275.0,0.216741]
[1736430483376,0.32099376,92296.0,92278.0,0.216735]
[1736430483798,0.01256,92295.0,92283.0,0.216724]
[1736430483996,0.01256,92294.0,92289.0,0.216709]
[1736430484198,0.01256,92293.0,92289.0,0.216709]
[1736430484599,0.01256,92293.0,92271.0,0.216752]
[1736430484816,0.16250439,92290.0,92270.0,8.52e-05]
[1736430484983,0.216717,92286.0,92270.0,8.52e-05]
[1736430485188,0.216731,92280.0,92270.0,8.52e-05]
[1736430485524,0.216752,92272.0,92270.0,8.52e-05]
[1736430486127,0.10429976,92279.0,92270.0,8.52e-05]
[1736430486307,0.216722,92284.0,92270.0,8.52e-05]
[1736430486515,0.01256,92283.0,92271.0,0.216752]
[1736430486717,0.001,92280.0,92271.0,0.216752]
[1736430486894,0.001,92280.0,92270.0,0.003587]
[1736430486895,0.01256,92279.0,92270.0,0.003587]
[1736430487099,0.01256,92279.0,92272.0,0.21675]
[1736430487545,0.001,92280.0,92277.0,0.216737]
[1736430487745,0.001,92280.0,92279.0,0.216734]
[1736430488145,0.01256,92283.0,92271.0,0.294252]
[1736430488350,0.001,92279.0,92278.0,0.216736]
[1736430488607,0.01256,92283.0,92278.0,0.216736]
[1736430488778,0.01256,92283.0,92272.0,0.21675]
[1736430488983,0.001,92280.0,92270.0,0.000587]
[1736430489392,0.01256,92283.0,92272.0,0.002]
[1736430489551,0.001,92279.0,92272.0,0.002]
[1736430489961,0.0229278,92282.0,92270.0,0.09750709]
[1736430490304,0.10429976,92281.0,92270.0,0.000587]
[1736430490482,0.216746,92274.0,92270.0,0.000587]
[1736430490682,0.216746,92274.0,92270.0,0.002587]
[1736430490889,0.21675,92272.0,92270.0,0.002587]
[1736430491083,0.10429976,92271.0,92270.0,0.000587]
[1736430491493,0.217731,92280.0,92270.0,0.000587]
[1736430491738,0.15,92289.0,92271.0,0.216752]
[1736430491937,0.16250439,92281.0,92270.0,0.000587]
[1736430492152,0.24466742,92280.0,92270.0,0.000587]
[1736430492352,0.216731,92280.0,92270.0,0.000587]
[1736430492607,0.37923539,92280.0,92270.0,0.000587]
[1736430492819,0.38323539,92280.0,92270.0,0.000587]
[1736430494275,0.03928014,92273.0,92270.0,0.000587]
[1736430494484,0.10429976,92273.0,92270.0,0.001587]
[1736430494906,0.01256,92274.0,92270.0,0.001587]
[1736430495763,0.216748,92273.0,92270.0,0.001587]
[1736430495979,0.01256,92274.0,92270.0,0.000587]
[1736430496194,0.32104776,92273.0,92270.0,0.000587]
[1736430496427,0.216752,92271.0,92270.0,0.001587]
[1736430496633,0.32105176,92271.0,92270.0,0.001587]
[1736430496841,0.32105176,92271.0,92270.0,0.000587]
[1736430497261,0.33361176,92271.0,92270.0,0.000587]
[1736430497470,0.10429976,92271.0,92270.0,0.000587]
[1736430497681,0.37493054,92271.0,92270.0,0.000587]
[1736430497905,0.01256,92271.0,92270.0,0.000587]
[1736430498546,0.001,92273.0,92270.0,0.000587]
[1736430498778,0.01256,92272.0,92271.0,0.216752]
[1736430498990,0.216717,92286.0,92271.0,0.216752]
[1736430499200,0.001,92271.0,92270.0,0.000587]
[1736430499411,0.01256,92296.0,92270.0,0.12788676]
[1736430499626,0.75,92275.0,92272.0,0.21675]
[1736430499831,0.75,92275.0,92270.0,0.000587]
[1736430500041,0.75,92275.0,92271.0,0.216752]
[1736430500451,0.75,92275.0,92272.0,0.023]
[1736430500666,0.75,92275.0,92274.0,0.023]
[1736430500879,0.75,92275.0,92274.0,0.12729976]
[1736430502534,0.76256,92275.0,92274.0,0.12729976]
[1736430502779,0.76356,92275.0,92274.0,0.218745]
[1736430503234,0.76356,92275.0,92274.0,0.32304476]
[1736430503438,0.751,92275.0,92274.0,0.35004476]
[1736430503888,0.751,92275.0,92274.0,0.34604476]
[1736430504320,0.751,92275.0,92274.0,0.34704476]
[1736430504757,0.751,92275.0,92274.0,0.44604476]
[1736430504965,0.64163,92275.0,92274.0,0.81904476]
[1736430505173,0.38543,92275.0,92274.0,0.69804476]
[1736430505382,0.3095714,92275.0,92274.0,0.69804476]
[1736430505807,0.3095714,92275.0,92274.0,0.69904476]
[1736430505808,0.27395014,92275.0,92274.0,0.69904476]
[1736430506035,0.0453,92331.0,92320.0,0.216637]
[1736430506036,0.01256,92321.0,92320.0,0.216637]
[1736430506252,0.0453,92331.0,92320.0,0.10429976]
[1736430506481,0.0453,92331.0,92330.0,0.216614]
[1736430506693,0.05758,92331.0,92330.0,0.216614]
[1736430506909,0.01228,92331.0,92330.0,0.216614]
[1736430507368,0.01243052,92331.0,92330.0,0.32091376]
[1736430507573,0.00015052,92331.0,92330.0,0.32091376]
[1736430508211,0.00015052,92331.0,92330.0,0.32191376]
[1736430508623,0.00015052,92331.0,92330.0,0.32091376]
[1736430508842,0.00015052,92331.0,92324.0,0.216626]
[1736430509121,0.00015052,92331.0,92330.0,0.007]
[1736430509333,0.00015052,92331.0,92330.0,0.002]
[1736430509541,0.00015052,92331.0,92330.0,0.10629976]
[1736430509748,0.00015052,92331.0,92330.0,0.11238268]
[1736430509982,0.00015052,92331.0,92330.0,0.002]
[1736430510197,0.00015052,92331.0,92330.0,0.10629976]
[1736430510403,0.00015052,92331.0,92330.0,0.10738272]
[1736430510615,0.00015052,92331.0,92330.0,0.13038272]
[1736430510820,0.00015052,92331.0,92330.0,0.13338272]
[1736430511238,0.00015052,92331.0,92330.0,0.10629976]
[1736430511665,0.00015052,92331.0,92330.0,0.004]
[1736430512075,0.00115052,92331.0,92330.0,0.008]
[1736430512289,0.00015052,92331.0,92328.0,0.216618]
[1736430512493,0.00015052,92331.0,92330.0,0.10429976]
[1736430512694,0.00115052,92331.0,92330.0,0.11029976]
[1736430512902,0.00115052,92331.0,92330.0,0.11021579]
[1736430513111,0.00015052,92331.0,92330.0,0.10421579]
[1736430513324,0.00015052,92331.0,92330.0,0.10721579]
[1736430513531,0.00015052,92331.0,92330.0,0.11121579]
[1736430513741,0.00015052,92331.0,92330.0,0.10821579]
[1736430514163,0.00015052,92331.0,92330.0,0.004]
[1736430514373,0.00015052,92331.0,92318.0,0.216641]
[1736430514577,0.01243052,92331.0,92320.0,0.216637]
[1736430514781,0.01243052,92331.0,92330.0,0.002]
[1736430515191,0.01243052,92331.0,92325.0,0.216625]
[1736430515410,0.01343052,92331.0,92330.0,0.002]
[1736430515754,0.01243052,92331.0,92320.0,0.216637]
[1736430516189,0.01243052,92331.0,92321.0,0.216635]
[1736430516387,0.01243052,92331.0,92320.0,0.216637]
[1736430516623,0.16250439,92330.0,92318.0,0.001]
[1736430516765,0.24540439,92330.0,92318.0,0.001]
[1736430516965,0.216619,92328.0,92318.0,0.001]
[1736430517289,0.216619,92328.0,92314.0,0.21665]
[1736430517495,0.21663,92324.0,92321.0,0.001]
[1736430517703,0.43326,92324.0,92321.0,0.001]
[1736430517935,0.21663,92324.0,92310.0,0.21666]
[1736430518168,0.216623,92326.0,92310.0,0.10429976]
[1736430518418,0.01228,92325.0,92321.0,0.216633]
[1736430518633,0.001,92328.0,92322.0,0.12838283]
[1736430518869,0.001,92328.0,92327.0,0.216621]
[1736430519091,0.001,92328.0,92327.0,0.34392076]
[1736430519511,0.001,92328.0,92327.0,0.59392076]
[1736430519718,0.00015052,92331.0,92330.0,0.373]
[1736430519943,0.00015052,92331.0,92330.0,0.47729976]
[1736430519944,5.2e-07,92331.0,92330.0,0.47729976]
[1736430520586,5.2e-07,92331.0,92330.0,0.27729976]
[1736430520795,5.2e-07,92331.0,92330.0,0.37729976]
[1736430521005,0.00100052,92331.0,92330.0,0.38329976]
[1736430521236,0.00100052,92331.0,92330.0,0.48229976]
[1736430521458,5.2e-07,92331.0,92330.0,0.47629976]
[1736430521705,5.2e-07,92331.0,92330.0,0.27629976]
[1736430521914,0.00100052,92331.0,92330.0,0.11029976]
[1736430522336,0.00100052,92331.0,92330.0,0.006]
[1736430522547,0.00200052,92331.0,92330.0,0.008]
[1736430522755,0.00200052,92331.0,92330.0,0.006]
[1736430523172,0.21961152,92331.0,92330.0,0.008]
[1736430523386,0.21861152,92331.0,92330.0,0.002]
[1736430523594,0.216629,92324.0,92312.0,0.216655]
[1736430523797,0.37911839,92330.0,92316.0,0.433291]
[1736430524003,0.37911839,92330.0,92318.0,0.216642]
[1736430524004,0.216614,92330.0,92318.0,0.216642]
[1736430524256,0.08210052,92331.0,92318.0,0.433284]
[1736430524461,0.216616,92329.0,92317.0,0.10429976]
[1736430524677,0.08210052,92331.0,92330.0,0.001]
[1736430525101,0.08210052,92331.0,92308.0,0.216665]
[1736430525102,0.216628,92324.0,92308.0,0.216665]
[1736430525314,0.216628,92324.0,92312.0,0.216655]
[1736430525539,0.216638,92320.0,92308.0,0.32096476]
[1736430525744,0.216628,92324.0,92312.0,0.216654]
[1736430525955,0.08210052,92331.0,92313.0,0.10538293]
[1736430526169,0.0009967,92327.0,92314.0,0.023]
[1736430526374,0.0009967,92327.0,92322.0,0.216633]
[1736430526585,0.01228,92326.0,92323.0,0.10429976]
[1736430526809,0.01228,92328.0,92325.0,0.216626]
[1736430527026,0.01228,92328.0,92321.0,0.216634]
[1736430527254,0.01228,92328.0,92322.0,0.10429976]
[1736430527480,0.01228,92328.0,92319.0,0.21664]
[1736430527701,0.01228,92328.0,92318.0,0.001]
[1736430527702,0.216635,92322.0,92318.0,0.001]
[1736430527933,0.216635,92321.0,92305.0,0.216671]
[1736430528143,0.21664,92319.0,92307.0,0.216668]
[1736430528348,0.21664,92319.0,92308.0,0.10429976]
[1736430528557,0.0819,92320.0,92309.0,0.216663]
[1736430528765,0.21664,92319.0,92309.0,0.32096276]
[1736430528970,0.0492,92318.0,92302.0,0.216679]
[1736430529178,0.0492,92318.0,92285.0,0.09665185]
[1736430529402,0.216658,92312.0,92298.0,0.216688]
[1736430529811,0.0492,92318.0,92286.0,0.10429976]
[1736430529812,0.0492,92318.0,92288.0,0.216711]
[1736430530105,0.216697,92295.0,92283.0,0.216723]
[1736430530315,0.298601,92293.0,92279.0,0.216734]
[1736430530537,0.298601,92293.0,92281.0,0.216729]
[1736430530739,0.216703,92292.0,92279.0,0.216734]
[1736430530944,0.216703,92292.0,92280.0,0.10429976]
[1736430530945,0.265903,92292.0,92280.0,0.10429976]
[1736430531150,0.216705,92291.0,92280.0,0.10429976]
[1736430531368,0.216705,92291.0,92280.0,0.10480156]
[1736430532251,0.216705,92291.0,92281.0,0.216729]
[1736430532459,0.216705,92291.0,92280.0,0.10480156]
[1736430532676,0.21672,92285.0,92280.0,0.0005018]
[1736430533112,0.43344,92285.0,92280.0,0.0005018]
[1736430533524,0.21672,92285.0,92280.0,0.0005018]
[1736430533736,0.433442,92285.0,92280.0,0.0005018]
[1736430534737,0.433442,92285.0,92280.0,0.0015018]
[1736430535156,0.002,92291.0,92280.0,0.0015018]
[1736430535579,0.002,92291.0,92281.0,0.216729]
[1736430535790,0.216708,92290.0,92280.0,0.0015018]
[1736430535995,0.216708,92290.0,92280.0,0.2182318]
[1736430536199,0.21527272,92290.0,92280.0,0.2192318]
[1736430536404,0.01172,92289.0,92280.0,0.2182318]
[1736430536807,0.01172,92289.0,92284.0,0.216722]
[1736430537021,0.01172,92289.0,92281.0,0.216729]
[1736430537228,0.01172,92289.0,92280.0,0.0005018]
[1736430537432,0.001,92290.0,92287.0,0.216714]
[1736430537637,0.01172,92289.0,92287.0,0.32101376]
[1736430537846,0.01172,92289.0,92287.0,0.10429976]
[1736430538051,0.228431,92289.0,92280.0,0.0005018]
[1736430538255,0.1286,92287.0,92280.0,0.0005018]
[1736430538470,0.216721,92285.0,92280.0,0.0005018]
[1736430539096,0.433443,92285.0,92280.0,0.0005018]
[1736430539886,0.216729,92281.0,92280.0,0.0015018]
[1736430540085,0.216729,92281.0,92280.0,0.0005018]
[1736430540289,0.216721,92285.0,92280.0,0.0015018]
[1736430540495,0.216729,92281.0,92280.0,0.0015018]
[1736430540732,0.228449,92281.0,92280.0,0.0005018]